bitfinex/quotes_ETHUSD_20250422
["timestamp","ask_amount","ask_price","bid_price","bid_amount"]
[1745301857143,6.31683326,1583.1,1582.9,105.79339613]
[1745301857784,6.31683326,1583.1,1582.9,105.329]
[1745301858080,6.31711939,1583.0,1582.9,105.329]
[1745301864196,7.10803326,1583.1,1582.9,105.329]
[1745301864406,13.42505373,1583.1,1582.9,105.329]
[1745301864762,6.31711939,1583.0,1582.9,105.329]
[1745301868906,12.63215634,1583.0,1582.9,105.329]
[1745301873195,11.82895634,1583.0,1582.9,105.329]
[1745301873399,10.48644107,1583.0,1582.9,105.329]
[1745301880166,4.16932168,1583.0,1582.9,107.68526359]
[1745301880402,4.16932168,1583.0,1582.9,114.00278206]
[1745301880805,4.16932168,1583.0,1582.9,107.68526359]
[1745301882385,4.16932168,1583.0,1582.9,108.14709836]
[1745301882585,4.16932168,1583.0,1582.9,106.55253477]
[1745301883109,4.16932168,1583.0,1582.9,108.14709836]
[1745301883312,4.16932168,1583.0,1582.9,106.55253477]
[1745301884108,12.63302458,1583.2,1582.9,106.55253477]
[1745301884310,6.31699894,1583.1,1582.9,105.329]
[1745301884986,7.09805853,1583.2,1582.9,106.0907]
[1745301885311,6.31655853,1583.2,1582.9,106.0907]
[1745301886070,12.63316172,1583.2,1582.9,106.0907]
[1745301886584,10.48539541,1583.3,1583.0,0.06317065]
[1745301886787,10.48539541,1583.3,1582.9,114.00267177]
[1745301887509,16.80164412,1583.3,1582.9,114.00267177]
[1745301887672,16.80164412,1583.3,1582.9,114.46644683]
[1745301888613,10.48539541,1583.3,1582.9,114.46644683]
[1745301889113,16.80163932,1583.3,1582.9,114.46644683]
[1745301890312,10.48539541,1583.3,1582.9,114.46644683]
[1745301890911,10.48539541,1583.3,1583.0,0.06316559]
[1745301891118,10.48539541,1583.3,1582.9,114.46644683]
[1745301891614,10.48539541,1583.3,1583.0,1.59456359]
[1745301892318,10.48539541,1583.3,1582.9,114.46644154]
[1745301892914,16.80160079,1583.3,1582.9,114.46644154]
[1745301893094,6.31638326,1583.2,1582.9,108.14903865]
[1745301893295,10.48539541,1583.3,1582.9,114.46642221]
[1745301894322,4.16932168,1583.3,1582.9,114.46637706]
[1745301894498,10.48531729,1583.3,1583.0,0.7631]
[1745301899427,4.16932168,1583.3,1583.0,7.08019085]
[1745301899629,10.48527066,1583.3,1583.0,2.35766359]
[1745301899823,4.26932168,1583.4,1583.2,0.7631]
[1745301900015,4.26932168,1583.4,1583.3,5.323]
[1745301900340,0.1,1583.4,1583.3,14.05974382]
[1745301900519,0.1,1583.4,1583.3,17.54658603]
[1745301901128,0.1,1583.4,1583.3,18.02216508]
[1745301901327,0.1,1583.4,1583.3,41.1909714]
[1745301904339,0.1,1583.4,1583.3,40.87363238]
[1745301904628,0.1,1583.4,1583.3,41.19625326]
[1745301906262,0.1,1583.4,1583.3,40.87363238]
[1745301906956,0.1,1583.4,1583.3,41.19460691]
[1745301909267,0.1,1583.4,1583.3,34.00770994]
[1745301909447,0.1,1583.4,1583.3,26.62057905]
[1745301910128,0.1,1583.4,1583.3,32.93650149]
[1745301910529,0.1,1583.4,1583.3,26.62057905]
[1745301911156,0.1,1583.4,1583.3,32.93650149]
[1745301911531,0.1,1583.4,1583.3,26.62057905]
[1745301912031,0.1,1583.4,1583.3,32.93650149]
[1745301914361,0.1,1583.4,1583.3,26.62057905]
[1745301915938,6.41552355,1583.4,1583.3,26.62057905]
[1745301916125,0.1,1583.4,1583.3,5.79857905]
[1745301918833,0.1,1583.4,1583.3,5.8617307]
[1745301919333,0.1,1583.4,1583.3,5.79857905]
[1745301921039,6.41552355,1583.4,1583.3,5.79857905]
[1745301922866,0.1,1583.4,1583.3,5.79857905]
[1745301923931,0.1,1583.4,1583.3,13.48910149]
[1745301925481,0.1,1583.4,1583.3,16.48910149]
[1745301930874,0.1,1583.4,1583.3,20.11313238]
[1745301931079,0.1,1583.4,1583.3,16.48910149]
[1745301931573,0.1,1583.4,1583.3,16.83893673]
[1745301936448,0.1,1583.4,1583.3,19.91296762]
[1745301937079,0.1,1583.4,1583.3,20.46296762]
[1745301937772,0.1,1583.4,1583.3,6.14841429]
[1745301939678,0.1,1583.4,1583.3,12.52748439]
[1745301939877,0.1,1583.4,1583.3,6.14841429]
[1745301941219,0.78134589,1583.4,1583.3,6.14841429]
[1745301941380,0.8913,1583.4,1583.3,6.14841429]
[1745301942501,7.20682355,1583.4,1583.3,5.67283524]
[1745301943029,0.8913,1583.4,1583.3,5.67283524]
[1745301943206,7.20682355,1583.4,1583.3,5.67283524]
[1745301944301,0.8913,1583.4,1583.3,5.67283524]
[1745301944506,7.20682355,1583.4,1583.3,5.67283524]
[1745301944709,7.96728361,1583.4,1583.3,5.67283524]
[1745301946817,0.1,1583.4,1583.3,5.67283524]
[1745301947022,0.1,1583.4,1583.3,12.53875768]
[1745301947243,0.1,1583.4,1583.3,13.28955768]
[1745301950642,0.1,1583.4,1583.3,16.75325425]
[1745301957943,0.1,1583.4,1583.3,37.56725425]
[1745301960241,0.1,1583.4,1583.3,41.19128514]
[1745301960649,0.1,1583.4,1583.3,37.56725425]
[1745301961854,0.1,1583.4,1583.3,41.19128514]
[1745301962754,0.1,1583.4,1583.3,37.56725425]
[1745301970945,0.1,1583.4,1583.3,36.81645425]
[1745301979793,0.8992,1583.4,1583.3,36.26645425]
[1745301979950,0.8992,1583.4,1583.3,36.81645425]
[1745301980150,0.8992,1583.4,1583.3,36.26645425]
[1745301980401,0.8992,1583.4,1583.3,36.81645425]
[1745301982502,0.8992,1583.4,1583.3,40.44048514]
[1745301984262,0.8992,1583.4,1583.3,33.5745627]
[1745301984565,0.8992,1583.4,1583.3,30.5745627]
[1745301984965,1.66046648,1583.4,1583.3,30.5745627]
[1745301985600,1.66046648,1583.4,1583.3,26.48683524]
[1745301985601,1.69336648,1583.4,1583.3,26.48683524]
[1745301987132,8.00889003,1583.4,1583.3,26.48683524]
[1745301989123,0.9321,1583.4,1583.3,30.11086613]
[1745301989418,0.1,1583.4,1583.3,36.89161807]
[1745301998819,0.9321,1583.4,1583.3,26.95166474]
[1745301999838,0.9321,1583.4,1583.3,6.13766474]
[1745302003856,0.1,1583.4,1583.3,9.82484728]
[1745302004218,0.1,1583.4,1583.3,9.76169563]
[1745302004548,0.1,1583.4,1583.3,16.07761807]
[1745302004741,0.1,1583.4,1583.3,9.76169563]
[1745302005450,0.932,1583.4,1583.3,6.13766474]
[1745302005949,0.932,1583.4,1583.3,5.67283524]
[1745302006639,1.69655024,1583.4,1583.3,5.67283524]
[1745302008860,8.01207379,1583.4,1583.3,5.67283524]
[1745302018167,7.98797379,1583.4,1583.3,5.67283524]
[1745302021274,1.67245024,1583.4,1583.3,5.67283524]
[1745302021449,0.9079,1583.4,1583.3,5.67283524]
[1745302024475,0.1,1583.4,1583.3,13.32185768]
[1745302025981,7.22342355,1583.4,1583.3,5.67283524]
[1745302026186,7.22342355,1583.4,1583.3,5.57944268]
[1745302028990,14.39274523,1583.4,1583.3,5.57944268]
[1745302029174,17.13489437,1583.4,1583.3,5.57944268]
[1745302039510,14.13489437,1583.4,1583.3,5.57944268]
[1745302040120,10.58484523,1583.4,1583.3,5.57944268]
[1745302040615,11.35004523,1583.4,1583.3,5.57944268]
[1745302044616,10.58484523,1583.4,1583.3,5.57944268]
[1745302047120,6.41552355,1583.4,1583.3,5.57944268]
[1745302048680,6.41552355,1583.4,1583.3,0.25644268]
[1745302049215,8.85340309,1583.4,1583.3,0.25644268]
[1745302058100,6.41552355,1583.4,1583.3,0.25644268]
[1745302066260,9.36592355,1583.4,1583.3,0.25644268]
[1745302066549,10.12662355,1583.4,1583.3,0.25644268]
[1745302068028,13.75065444,1583.4,1583.3,0.25644268]
[1745302068412,6.31711939,1583.0,1582.9,105.315]
[1745302068962,12.63393222,1583.1,1582.9,105.315]
[1745302069127,6.31711939,1583.0,1582.9,105.315]
[1745302071576,7.07781939,1583.0,1582.9,105.315]
[1745302071869,6.31711939,1583.0,1582.9,105.315]
[1745302074986,7.12521939,1583.0,1582.9,105.315]
[1745302076991,7.12521939,1583.0,1582.9,105.54039333]
[1745302078077,6.31711939,1583.0,1582.9,105.54039333]
[1745302078990,6.32031348,1582.2,1582.1,0.7605]
[1745302079157,6.31991404,1582.3,1582.2,5.314]
[1745302079351,6.31926796,1582.5,1582.3,0.7605]
[1745302079666,6.3188448,1582.6,1582.4,0.18782777]
[1745302079983,6.31803722,1582.8,1582.5,0.7605]
[1745302080194,8.37934384,1582.8,1582.5,0.7605]
[1745302080352,14.69761492,1582.8,1582.6,5.314]
[1745302080553,8.37934384,1582.8,1582.7,0.18782777]
[1745302080787,14.69761492,1582.8,1582.6,5.314]
[1745302080968,8.37934384,1582.8,1582.7,0.18782777]
[1745302081186,14.69761492,1582.8,1582.6,5.314]
[1745302081363,1.46976149,1582.7,1582.6,5.314]
[1745302081970,8.37934384,1582.8,1582.6,5.314]
[1745302082316,14.69763799,1582.8,1582.6,5.314]
[1745302082486,14.69757614,1582.8,1582.6,5.314]
[1745302082787,8.37934384,1582.8,1582.6,5.314]
[1745302083177,14.69760795,1582.8,1582.6,5.314]
[1745302083689,14.6975519,1582.8,1582.6,5.314]
[1745302083983,8.37934384,1582.8,1582.6,5.314]
[1745302084159,14.69754693,1582.8,1582.6,5.314]
[1745302084994,8.37934384,1582.8,1582.6,5.314]
[1745302085291,14.69760824,1582.8,1582.6,5.314]
[1745302086092,8.37934384,1582.8,1582.6,5.314]
[1745302086595,8.37934384,1582.8,1582.7,0.19603952]
[1745302086766,8.37934384,1582.8,1582.6,5.314]
[1745302086972,8.37934384,1582.8,1582.7,0.19603952]
[1745302087201,8.37934384,1582.8,1582.6,5.314]
[1745302087386,8.37934384,1582.8,1582.7,0.19603952]
[1745302087695,8.37934384,1582.8,1582.6,5.314]
[1745302087899,8.37934384,1582.8,1582.7,0.19603952]
[1745302088267,14.69761584,1582.8,1582.6,5.314]
[1745302088463,8.37934384,1582.8,1582.7,0.20412488]
[1745302088774,6.3183168,1582.7,1582.6,5.314]
[1745302088975,6.3183168,1582.7,1582.6,5.51812488]
[1745302089499,10.48763848,1582.7,1582.6,5.51812488]
[1745302090504,11.28343848,1582.7,1582.6,5.51812488]
[1745302090713,13.88152767,1582.7,1582.6,5.51812488]
[1745302092003,13.08572767,1582.7,1582.6,5.51812488]
[1745302092179,4.16932168,1582.7,1582.6,5.51812488]
[1745302092497,10.48763848,1582.7,1582.6,5.51812488]
[1745302095335,6.3183168,1582.7,1582.6,5.51812488]
[1745302096842,12.54866552,1582.8,1582.6,5.51812488]
[1745302097023,0.7958,1582.7,1582.6,0.20412488]
[1745302097223,6.31887937,1582.6,1582.3,0.7866]
[1745302097426,6.31887937,1582.6,1582.4,0.20412488]
[1745302100242,8.44876058,1582.7,1582.4,0.20412488]
[1745302100708,7.65296058,1582.7,1582.4,0.20412488]
[1745302101245,7.65296058,1582.7,1582.5,0.7866]
[1745302101610,10.48747618,1582.8,1582.6,0.20475688]
[1745302101848,6.3183168,1582.7,1582.6,0.20475688]
[1745302103056,7.1141168,1582.7,1582.6,0.20475688]
[1745302103406,6.31911532,1582.5,1582.4,5.314]
[1745302103650,6.31911532,1582.5,1582.4,5.51875688]
[1745302103851,6.31890803,1582.6,1582.4,5.51875688]
[1745302104152,6.31890803,1582.6,1582.4,6.31015688]
[1745302105007,6.31849453,1582.7,1582.4,6.31015688]
[1745302105208,6.31878643,1582.6,1582.4,6.31015688]
[1745302105610,7.13432226,1582.7,1582.4,6.31015688]
[1745302105611,0.81582773,1582.7,1582.4,6.31015688]
[1745302105842,16.80558868,1582.8,1582.5,0.7914]
[1745302106035,10.48738861,1582.8,1582.5,6.1064]
[1745302106545,10.48738861,1582.8,1582.6,0.20475688]
[1745302106748,12.25005986,1582.8,1582.6,0.20475688]
[1745302108812,6.3183168,1582.7,1582.6,0.20475688]
[1745302109435,7.0720168,1582.7,1582.6,0.20475688]
[1745302109746,6.3183168,1582.7,1582.6,0.20475688]
[1745302119023,7.1405168,1582.7,1582.6,0.20475688]
[1745302119222,9.71138581,1582.7,1582.6,0.20475688]
[1745302125672,6.31911532,1582.5,1582.4,5.314]
[1745302127275,7.14131532,1582.5,1582.4,5.314]
[1745302127439,6.32020515,1582.3,1582.1,6.1094]
[1745302127940,12.64042954,1582.3,1582.1,6.1094]
[1745302128168,6.32020515,1582.3,1582.1,5.314]
[1745302128471,7.14154964,1582.5,1582.2,0.7954]
[1745302128645,12.63874905,1582.5,1582.2,0.7954]
[1745302129364,6.31953107,1582.4,1582.2,0.7954]
[1745302130180,6.31934964,1582.5,1582.2,0.7954]
[1745302130474,10.48819993,1582.6,1582.2,7.11558473]
[1745302130882,6.31914018,1582.5,1582.2,0.7954]
[1745302131708,6.31952786,1582.4,1582.1,6.1094]
[1745302131914,6.31928811,1582.5,1582.1,5.314]
[1745302132097,4.16932168,1582.6,1582.4,0.7954]
[1745302132264,4.16932168,1582.6,1582.5,16.05254621]
[1745302134313,4.16932168,1582.6,1582.5,12.42851532]
[1745302134670,4.16932168,1582.6,1582.5,6.1094]
[1745302135001,4.16932168,1582.6,1582.5,12.42851532]
[1745302135392,4.16932168,1582.6,1582.5,6.1094]
[1745302136413,6.3179974,1582.8,1582.5,6.1094]
[1745302136710,7.58155899,1582.8,1582.5,6.1094]
[1745302136894,7.58155899,1582.8,1582.6,0.1889112]
[1745302137714,6.3183168,1582.7,1582.6,0.1889112]
[1745302141024,7.58155899,1582.8,1582.6,0.1889112]
[1745302142102,13.89984035,1582.8,1582.6,0.1889112]
[1745302142301,11.75088067,1582.8,1582.6,0.1889112]
[1745302145032,18.06910016,1582.8,1582.6,0.1889112]
[1745302146131,6.3183168,1582.7,1582.6,0.1889112]
[1745302146429,8.12523655,1582.7,1582.6,0.1889112]
[1745302147117,1.80691975,1582.7,1582.6,0.1889112]
[1745302147322,6.3183168,1582.7,1582.6,0.1889112]
[1745302147540,4.16932168,1582.8,1582.6,0.1889112]
[1745302147834,10.48726555,1582.8,1582.6,0.1889112]
[1745302147997,6.3183168,1582.7,1582.6,0.1889112]
[1745302148197,16.80546239,1582.8,1582.6,0.1889112]
[1745302148398,6.3183168,1582.7,1582.6,0.1889112]
[1745302150407,7.1462168,1582.7,1582.6,0.1889112]
[1745302153920,11.31553848,1582.7,1582.6,0.1889112]
[1745302162249,11.31553848,1582.7,1582.2,6.1037]
[1745302162250,6.31958749,1582.4,1582.2,6.1037]
[1745302164219,6.31935858,1582.5,1582.2,6.1037]
[1745302164428,6.31935858,1582.5,1582.2,12.42400214]
[1745302164628,6.31954924,1582.4,1582.2,6.1037]
[1745302165233,6.32071297,1582.1,1582.0,20.83]
[1745302166130,6.32177206,1581.9,1581.6,6.1441]
[1745302166526,6.32111251,1582.0,1581.7,0.8321]
[1745302166941,16.81123816,1582.1,1581.8,0.16209855]
[1745302167324,6.32112156,1582.0,1581.8,0.16209855]
[1745302168764,8.00225632,1582.0,1581.8,0.16209855]
[1745302169283,6.3215121,1581.9,1581.8,0.16209855]
[1745302170667,6.32200058,1581.8,1581.6,6.1441]
[1745302171347,10.49132226,1581.8,1581.6,6.1441]
[1745302171944,4.16932168,1581.8,1581.6,12.46654571]
[1745302173143,5.21840729,1581.8,1581.6,6.1441]
[1745302173351,6.32231143,1581.7,1581.6,6.1441]
[1745302173641,16.81365223,1581.8,1581.6,6.1441]
[1745302173844,6.32231143,1581.7,1581.6,5.312]
[1745302174162,6.32311097,1581.5,1581.3,5.314]
[1745302174734,6.32295214,1581.6,1581.3,11.63779717]
[1745302174979,10.4918741,1581.7,1581.4,0.8321]
[1745302175161,12.24835488,1581.7,1581.4,0.8321]
[1745302175868,18.57099268,1581.7,1581.4,0.8321]
[1745302176068,6.3239107,1581.3,1581.2,0.8321]
[1745302176254,6.32351081,1581.4,1581.2,0.8321]
[1745302176456,0.63235108,1581.4,1581.2,0.8321]
[1745302176638,12.64759645,1581.4,1581.2,0.8321]
[1745302176960,6.3236964,1581.4,1581.0,7.15719359]
[1745302177276,6.32366794,1581.4,1581.0,0.8321]
[1745302177457,6.32422819,1581.3,1581.0,0.8321]
[1745302177663,6.32444616,1581.2,1581.0,0.8321]
[1745302179178,6.32417324,1581.3,1581.0,0.8321]
[1745302179349,6.32433102,1581.2,1581.0,0.8321]
[1745302179871,7.13013102,1581.2,1580.9,5.314]
[1745302180038,6.32433102,1581.2,1580.9,5.314]
[1745302180438,6.32487863,1581.1,1580.9,5.314]
[1745302180984,6.32455362,1581.2,1580.9,5.314]
[1745302181779,7.79648278,1581.2,1580.9,5.314]
[1745302181943,6.32478862,1581.1,1581.0,0.17156231]
[1745302183980,11.96581028,1581.2,1581.0,0.17156231]
[1745302184543,5.64125084,1581.2,1581.0,0.95116231]
[1745302185080,6.32418039,1581.3,1581.0,0.95116231]
[1745302185242,16.81694776,1581.4,1581.0,7.27613289]
[1745302186051,10.49267921,1581.5,1581.1,6.32458204]
[1745302186252,4.16932168,1581.5,1581.3,9.94770685]
[1745302186469,18.57109339,1581.7,1581.5,0.7796]
[1745302186644,18.57109339,1581.7,1581.4,6.27676208]
[1745302186645,8.17982051,1581.6,1581.4,6.27676208]
[1745302186845,8.17982051,1581.6,1581.4,6.0956]
[1745302187159,8.17982051,1581.6,1581.5,0.18116208]
[1745302190094,16.77897308,1581.6,1581.5,0.18116208]
[1745302190249,6.32575366,1580.9,1580.8,0.7796]
[1745302190449,6.32575366,1580.9,1580.8,0.92360897]
[1745302190689,6.32551078,1580.9,1580.8,0.92360897]
[1745302191063,6.32511068,1581.0,1580.8,0.92360897]
[1745302191260,6.32551078,1580.9,1580.8,0.14400897]
[1745302191555,0.63251107,1580.9,1580.8,0.14400897]
[1745302191761,6.32551078,1580.9,1580.8,0.14400897]
[1745302192161,10.49483246,1580.9,1580.8,0.14400897]
[1745302192944,4.16932168,1580.9,1580.8,0.14400897]
[1745302193290,4.16932168,1580.9,1580.8,0.92360897]
[1745302193456,10.49483246,1580.9,1580.8,0.92360897]
[1745302193661,10.49483246,1580.9,1580.8,0.14400897]
[1745302193859,4.16932168,1580.9,1580.8,0.14400897]
[1745302194065,10.49483246,1580.9,1580.8,0.14400897]
[1745302194380,12.14484425,1580.9,1580.8,0.14400897]
[1745302198056,12.97434425,1580.9,1580.8,0.14400897]
[1745302199263,10.46283246,1580.9,1580.8,0.14400897]
[1745302200577,4.13732168,1580.9,1580.8,0.14400897]
[1745302201160,10.46283246,1580.9,1580.8,0.14400897]
[1745302208437,11.23533246,1580.9,1580.8,0.14400897]
[1745302208733,6.32705515,1580.6,1580.4,0.8294]
[1745302208935,12.65309696,1580.7,1580.5,0.1574587]
[1745302209524,6.32671137,1580.6,1580.5,0.1574587]
[1745302209728,8.40602774,1580.6,1580.5,0.1574587]
[1745302210067,6.32751202,1580.4,1580.3,5.39]
[1745302211949,6.32751202,1580.4,1580.3,5.54629478]
[1745302214642,4.13732168,1580.5,1580.4,0.827]
[1745302215004,10.46443335,1580.5,1580.4,0.827]
[1745302215225,4.13732168,1580.5,1580.4,0.98329478]
[1745302215399,10.46443335,1580.5,1580.4,0.15629478]
[1745302215750,12.95755482,1580.5,1580.4,0.15629478]
[1745302215906,6.32794145,1580.3,1580.1,20.952]
[1745302216102,6.32794145,1580.3,1580.2,0.16273711]
[1745302216340,6.32794145,1580.3,1580.1,20.952]
[1745302216502,6.32794145,1580.3,1580.2,0.16273711]
[1745302216698,6.32794145,1580.3,1580.1,20.952]
[1745302216926,6.32794145,1580.3,1580.2,0.16273711]
[1745302217097,6.32794145,1580.3,1580.1,20.952]
[1745302217301,6.32794145,1580.3,1580.2,0.16273711]
[1745302217504,6.32794145,1580.3,1580.1,20.952]
[1745302217715,6.32794145,1580.3,1580.2,0.16273711]
[1745302217911,6.32794145,1580.3,1580.1,20.952]
[1745302218117,6.32794145,1580.3,1580.2,0.16273711]
[1745302218320,12.65623511,1580.3,1580.1,20.952]
[1745302218514,6.32831287,1580.2,1580.1,20.952]
[1745302219744,12.54525998,1580.2,1580.1,0.1]
[1745302219934,11.73125998,1580.2,1580.1,0.1]
[1745302222350,4.13732168,1580.2,1580.1,0.927]
[1745302222643,6.32751202,1580.4,1580.3,0.827]
[1745302222806,6.32751202,1580.4,1580.3,6.296]
[1745302223652,6.32751202,1580.4,1580.3,5.469]
[1745302223952,7.59299295,1580.4,1580.3,5.469]
[1745302224158,6.32751202,1580.4,1580.3,5.469]
[1745302225113,6.32729726,1580.5,1580.3,5.469]
[1745302225614,6.32751202,1580.4,1580.3,5.469]
[1745302226065,6.32791242,1580.3,1580.1,0.1]
[1745302226359,6.32831287,1580.2,1580.1,0.1]
[1745302226657,7.5939354,1580.2,1580.1,0.1]
[1745302227157,7.5939354,1580.2,1580.1,0.23909438]
[1745302231366,7.5939354,1580.2,1580.1,0.39766419]
[1745302231687,11.73125708,1580.2,1580.1,0.39766419]
[1745302231841,16.13988797,1580.2,1580.1,0.39766419]
[1745302232041,12.51585708,1580.2,1580.1,0.39766419]
[1745302232441,11.73125708,1580.2,1580.1,0.39766419]
[1745302234446,12.51585708,1580.2,1580.1,0.39766419]
[1745302235657,12.51585708,1580.2,1579.7,5.47]
[1745302235658,6.33111744,1579.5,1579.4,27.1088]
[1745302236756,6.33085513,1579.6,1579.4,27.1088]
[1745302237298,6.33209996,1579.3,1579.2,0.7808]
[1745302237604,6.33232016,1579.2,1579.1,0.1]
[1745302237876,6.3309005,1579.6,1579.2,7.11287397]
[1745302238064,6.33114063,1579.5,1579.2,0.7808]
[1745302238579,6.3309005,1579.6,1579.3,0.7808]
[1745302238877,6.33116078,1579.5,1579.4,5.471]
[1745302240548,6.33228748,1579.3,1579.1,6.4006]
[1745302241503,6.33232016,1579.2,1579.1,6.4006]
[1745302241650,6.33232016,1579.2,1579.1,5.571]
[1745302242597,6.33232016,1579.2,1579.1,0.1]
[1745302242598,11.29124184,1579.2,1579.1,0.1]
[1745302242885,13.05359477,1579.2,1579.1,0.1]
[1745302244514,16.60359477,1579.2,1579.1,1e-08]
[1745302245014,6.33472697,1578.6,1578.5,20.865]
[1745302245216,6.33512828,1578.5,1578.4,5.472]
[1745302246511,6.33472697,1578.6,1578.4,5.472]
[1745302246684,10.47186891,1578.7,1578.4,5.472]
[1745302246889,10.47185,1578.7,1578.5,0.8296]
[1745302247090,6.33490968,1578.6,1578.5,0.8296]
[1745302247285,10.47185,1578.7,1578.5,0.8296]
[1745302247490,4.13732168,1578.7,1578.5,0.8296]
[1745302247692,10.47172285,1578.7,1578.5,4.45363089]
[1745302247887,4.13732168,1578.9,1578.6,3.8296]
[1745302248088,6.33290506,1579.1,1578.9,0.8296]
[1745302248317,6.33252857,1579.2,1578.9,6.3026]
[1745302248511,12.66514718,1579.2,1578.9,6.3026]
[1745302248677,6.33252857,1579.2,1578.9,6.3026]
[1745302248881,12.66517886,1579.2,1578.9,6.3026]
[1745302249080,6.33272871,1579.1,1578.9,6.3026]
[1745302249280,6.33257779,1579.2,1578.9,6.3026]
[1745302249696,6.33286519,1579.1,1578.9,6.3026]
[1745302250090,12.66596119,1579.1,1578.9,6.3026]
[1745302250909,6.33286519,1579.1,1578.9,6.3026]
[1745302251427,6.33312222,1579.0,1578.9,6.3026]
[1745302252012,6.33312222,1579.0,1578.9,6.49989618]
[1745302252218,6.33312222,1579.0,1578.9,5.67029618]
[1745302253783,10.47032109,1579.1,1578.9,5.67029618]
[1745302254311,4.13732168,1579.1,1579.0,0.7547]
[1745302254482,10.47004285,1579.1,1579.0,0.7547]
[1745302254896,4.13732168,1579.1,1579.0,0.95199618]
[1745302255986,10.47004285,1579.1,1579.0,0.95199618]
[1745302259637,6.33272117,1579.1,1579.0,0.95199618]
[1745302260144,6.33272117,1579.1,1579.0,0.19729618]
[1745302260500,10.46935662,1579.3,1579.0,0.19729618]
[1745302260734,10.46871017,1579.5,1579.1,6.33257864]
[1745302260911,6.33092171,1579.6,1579.2,7.08697142]
[1745302261116,6.32962683,1579.9,1579.4,7.08617802]
[1745302261438,7.40931717,1579.9,1579.4,13.41725646]
[1745302261621,6.33037658,1579.7,1579.5,0.19918685]
[1745302262132,6.33071663,1579.6,1579.5,0.19918685]
[1745302262937,6.33136361,1579.5,1579.3,5.658]
[1745302264432,12.66276113,1579.5,1579.3,5.658]
[1745302265348,6.33136361,1579.5,1579.3,5.658]
[1745302265547,12.66276474,1579.5,1579.3,5.658]
[1745302265751,6.33136361,1579.5,1579.3,5.658]
[1745302266634,6.33151829,1579.4,1579.3,5.658]
[1745302267143,6.33136361,1579.5,1579.3,5.658]
[1745302268665,6.33151829,1579.4,1579.3,5.658]
[1745302269844,6.33136361,1579.5,1579.3,5.658]
[1745302270238,6.33151829,1579.4,1579.3,5.658]
[1745302272048,6.33151829,1579.4,1579.3,5.84446051]
[1745302276215,7.08831829,1579.4,1579.3,5.84446051]
[1745302278528,7.08831829,1579.4,1579.3,0.18646051]
[1745302278755,10.46883997,1579.4,1579.3,0.18646051]
[1745302278935,10.46883997,1579.4,1579.0,5.657]
[1745302278936,7.08952117,1579.1,1579.0,5.657]
[1745302279118,11.22684285,1579.1,1579.0,5.657]
[1745302279318,4.13732168,1579.1,1579.0,6.4445]
[1745302280358,10.47004285,1579.1,1579.0,6.4445]
[1745302280724,6.33216519,1579.3,1579.0,6.4445]
[1745302280927,10.4682109,1579.6,1579.2,9.97651576]
[1745302281163,6.33088922,1579.6,1579.4,3.64423551]
[1745302281469,6.33088922,1579.6,1579.5,5.657]
[1745302283658,6.33052847,1579.7,1579.5,5.657]
[1745302283827,4.13732168,1579.9,1579.5,6.5433107]
[1745302284034,6.33026061,1579.8,1579.5,6.48]
[1745302286867,6.33026061,1579.8,1579.5,12.81098978]
[1745302287069,10.46706156,1579.9,1579.6,0.1512732]
[1745302287268,6.33003817,1579.8,1579.6,0.1512732]
[1745302290271,10.4666308,1580.0,1579.6,0.1512732]
[1745302290471,10.4666308,1580.0,1579.6,10.12609985]
[1745302290640,10.4666308,1580.0,1579.7,0.823]
[1745302291041,10.4666308,1580.0,1579.8,0.1457412]
[1745302291479,6.32951452,1579.9,1579.8,0.1457412]
[1745302294280,10.4666308,1580.0,1579.8,0.1457412]
[1745302294481,10.4666308,1580.0,1579.9,5.594]
[1745302294685,12.22490473,1580.0,1579.9,5.73634733]
[1745302297580,4.13732168,1580.0,1579.9,5.73634733]
[1745302300940,4.13732168,1580.0,1579.9,6.53484733]
[1745302302146,4.13732168,1580.0,1579.9,5.73634733]
[1745302303663,12.65794145,1580.1,1579.9,5.73634733]
[1745302304457,6.32894816,1580.1,1579.9,5.73634733]
[1745302304778,7.34729232,1580.1,1579.9,5.73634733]
[1745302304970,13.67636094,1580.1,1579.9,5.73634733]
[1745302305173,7.34729232,1580.1,1579.9,5.73634733]
[1745302308892,12.65719429,1580.2,1579.9,5.73634733]
[1745302309051,12.65720232,1580.2,1579.9,5.73634733]
[1745302309252,6.32879754,1580.1,1579.9,5.73634733]
[1745302312264,6.32856918,1580.2,1579.9,5.73634733]
[1745302312468,6.32856918,1580.2,1580.0,0.8178]
[1745302312879,6.32856918,1580.2,1580.1,0.13907983]
[1745302313192,10.46545598,1580.3,1580.1,0.13907983]
[1745302313687,6.32770534,1580.4,1580.1,0.13907983]
[1745302313688,10.46502702,1580.4,1580.1,0.13907983]
[1745302314051,10.46502702,1580.4,1580.1,6.46778331]
[1745302314255,7.11723765,1580.5,1580.1,6.46759724]
[1745302314460,6.32762994,1580.4,1580.1,6.46759724]
[1745302314868,6.32762994,1580.4,1580.2,0.7519]
[1745302315212,6.32762994,1580.4,1580.3,5.51]
[1745302315377,6.32762994,1580.4,1580.3,5.64531022]
[1745302317188,6.32733765,1580.5,1580.3,5.64531022]
[1745302317594,12.65475443,1580.5,1580.3,5.64531022]
[1745302317770,6.32733765,1580.5,1580.3,5.64531022]
[1745302317972,6.32751202,1580.4,1580.3,5.64531022]
[1745302321315,8.41879699,1580.4,1580.3,5.64531022]
[1745302325414,6.32730593,1580.5,1580.3,6.39721022]
[1745302325619,12.65468894,1580.5,1580.3,6.39721022]
[1745302325914,6.32751202,1580.4,1580.3,6.39721022]
[1745302326284,6.32751202,1580.4,1580.3,5.64531022]
[1745302331726,7.08611202,1580.4,1580.3,5.64531022]
[1745302331927,12.43890631,1580.4,1580.3,5.64531022]
[1745302332231,6.32871337,1580.1,1580.0,5.677]
[1745302332427,6.32871337,1580.1,1580.0,0.29828517]
[1745302332630,7.08731337,1580.1,1580.0,0.29828517]
[1745302333729,14.86887056,1580.1,1580.0,1e-08]
[1745302334023,14.86887056,1580.1,1579.0,20.861]
[1745302334024,6.3319192,1579.3,1579.2,0.7806]
[1745302335246,6.33169744,1579.4,1579.2,0.7806]
[1745302340964,6.33131996,1579.5,1579.2,0.7806]
[1745302341161,6.33166757,1579.4,1579.2,0.7806]
[1745302343968,6.33131996,1579.5,1579.2,4.48815509]
[1745302344258,6.33131996,1579.5,1579.2,4.42483551]
[1745302346258,6.33131996,1579.5,1579.2,10.75709822]